[Event "Early-Titled-Tuesday-Blitz-November-28-2023"]
[Site "Chess.com"]
[Date "2023.11.28"]
[Round "2"]
[White "IsuruAlahakoon"]
[Black "JoliyRoger"]
[Result "0-1"]
[WhiteElo "2265"]
[BlackElo "2503"]
[TimeControl "180+1"]
[EndTime "8:18:02 PST"]
[Termination "JoliyRoger won on time"]

1. Nf3 {[%clk 0:03:00.9]} 1... Nf6 {[%clk 0:02:56.8]} 2. d4 {[%clk 0:03:00.1]}
2... e6 {[%clk 0:02:55.9]} 3. Nc3 {[%clk 0:02:59.5]} 3... d5 {[%clk 0:02:52]} 4.
Bg5 {[%clk 0:02:58.8]} 4... Bb4 {[%clk 0:02:50.6]} 5. Qd3 {[%clk 0:02:57]} 5...
h6 {[%clk 0:02:50]} 6. Bh4 {[%clk 0:02:54.1]} 6... c5 {[%clk 0:02:35.7]} 7. a3
{[%clk 0:02:38.3]} 7... c4 {[%clk 0:02:11.2]} 8. Qd2 {[%clk 0:02:32.6]} 8... Ba5
{[%clk 0:02:09.3]} 9. Bxf6 {[%clk 0:02:21]} 9... Qxf6 {[%clk 0:02:05.9]} 10. g3
{[%clk 0:02:12.1]} 10... Nc6 {[%clk 0:02:00.4]} 11. Bg2 {[%clk 0:02:10.7]} 11...
O-O {[%clk 0:01:58.6]} 12. O-O {[%clk 0:02:09.5]} 12... b5 {[%clk 0:01:57.2]}
13. e4 {[%clk 0:02:00.1]} 13... Bxc3 {[%clk 0:01:50.3]} 14. bxc3 {[%clk
0:01:53.5]} 14... dxe4 {[%clk 0:01:48.8]} 15. Ne1 {[%clk 0:01:41.2]} 15... Qg6
{[%clk 0:01:43.8]} 16. f3 {[%clk 0:01:29.1]} 16... exf3 {[%clk 0:01:13.8]} 17.
Nxf3 {[%clk 0:01:28]} 17... Bb7 {[%clk 0:01:14.5]} 18. Nh4 {[%clk 0:01:09.3]}
18... Qg5 {[%clk 0:01:13.7]} 19. Qxg5 {[%clk 0:01:07.2]} 19... hxg5 {[%clk
0:01:14]} 20. Nf3 {[%clk 0:01:07.7]} 20... f6 {[%clk 0:01:08.1]} 21. Rab1 {[%clk
0:01:05]} 21... a6 {[%clk 0:01:05.7]} 22. Nd2 {[%clk 0:01:04.4]} 22... Na5
{[%clk 0:00:58.6]} 23. Bxb7 {[%clk 0:01:02.3]} 23... Nxb7 {[%clk 0:00:59.5]} 24.
Nxc4 {[%clk 0:01:02.7]} 24... Rac8 {[%clk 0:00:56.6]} 25. Nb6 {[%clk 0:00:40.8]}
25... Rxc3 {[%clk 0:00:55.5]} 26. a4 {[%clk 0:00:41.1]} 26... Nd6 {[%clk
0:00:50.2]} 27. Nd7 {[%clk 0:00:34.2]} 27... Re8 {[%clk 0:00:45.9]} 28. Rf2
{[%clk 0:00:19.2]} 28... Rc4 {[%clk 0:00:42.6]} 29. axb5 {[%clk 0:00:16.6]}
29... Nxb5 {[%clk 0:00:42.8]} 30. Nc5 {[%clk 0:00:13]} 30... Nxd4 {[%clk
0:00:41.7]} 31. Nxa6 {[%clk 0:00:12.7]} 31... Rxc2 {[%clk 0:00:42.1]} 32. Rxc2
{[%clk 0:00:11.9]} 32... Nxc2 {[%clk 0:00:43]} 33. Nc7 {[%clk 0:00:10.5]} 33...
Re7 {[%clk 0:00:42.5]} 34. Rb8+ {[%clk 0:00:10.2]} 34... Kh7 {[%clk 0:00:41.6]}
35. Nb5 {[%clk 0:00:10.2]} 35... Rd7 {[%clk 0:00:39.9]} 36. Rc8 {[%clk
0:00:08.6]} 36... Nd4 {[%clk 0:00:39.6]} 37. Nc3 {[%clk 0:00:07.5]} 37... g4
{[%clk 0:00:38.1]} 38. Ne4 {[%clk 0:00:06.6]} 38... Kg6 {[%clk 0:00:34.8]} 39.
Kf2 {[%clk 0:00:06]} 39... Nf5 {[%clk 0:00:30.4]} 40. Ke2 {[%clk 0:00:06.1]}
40... Ra7 {[%clk 0:00:28.1]} 41. Rc2 {[%clk 0:00:04.5]} 41... Nd4+ {[%clk
0:00:26.7]} 0-1

[Event "Early-Titled-Tuesday-Blitz-November-28-2023"]
[Site "Chess.com"]
[Date "2023.11.28"]
[Round "2"]
[White "MajorCoast"]
[Black "colegiodemadrid"]
[Result "0-1"]
[WhiteElo "2216"]
[BlackElo "2492"]
[TimeControl "180+1"]
[EndTime "8:18:02 PST"]
[Termination "colegiodemadrid won by checkmate"]

1. a4 {[%clk 0:03:00.9]} 1... Nf6 {[%clk 0:02:57.4]} 2. Nf3 {[%clk 0:03:00.1]}
2... g6 {[%clk 0:02:57.8]} 3. e3 {[%clk 0:03:00.2]} 3... Bg7 {[%clk 0:02:58.5]}
4. c3 {[%clk 0:03:00.1]} 4... O-O {[%clk 0:02:59.4]} 5. d4 {[%clk 0:03:00.3]}
5... d6 {[%clk 0:02:59.2]} 6. Bd3 {[%clk 0:03:00.5]} 6... Re8 {[%clk 0:02:58.5]}
7. b4 {[%clk 0:02:59.1]} 7... e5 {[%clk 0:02:58.9]} 8. Bc4 {[%clk 0:02:54.6]}
8... d5 {[%clk 0:02:57.1]} 9. Ba2 {[%clk 0:02:51.6]} 9... e4 {[%clk 0:02:57.1]}
10. Nfd2 {[%clk 0:02:51.4]} 10... Ng4 {[%clk 0:02:51]} 11. Ba3 {[%clk
0:02:41.5]} 11... Qh4 {[%clk 0:02:49.1]} 12. g3 {[%clk 0:02:37]} 12... Qh3
{[%clk 0:02:46.2]} 13. Qe2 {[%clk 0:02:30.5]} 13... c6 {[%clk 0:02:18.6]} 14. c4
{[%clk 0:02:29.3]} 14... Be6 {[%clk 0:02:17.2]} 15. cxd5 {[%clk 0:02:26.2]}
15... cxd5 {[%clk 0:02:17.5]} 16. Nb3 {[%clk 0:02:25.8]} 16... Qg2 {[%clk
0:02:11.7]} 17. Qf1 {[%clk 0:02:19.9]} 17... Qf3 {[%clk 0:02:07.8]} 18. N1d2
{[%clk 0:02:19]} 18... Qf5 {[%clk 0:02:05.3]} 19. Nc5 {[%clk 0:02:15.3]} 19...
Bc8 {[%clk 0:02:02.6]} 20. h3 {[%clk 0:02:07.4]} 20... Nf6 {[%clk 0:01:58.1]}
21. O-O-O {[%clk 0:02:06.7]} 21... b6 {[%clk 0:01:56.7]} 22. Ncb3 {[%clk
0:02:03.7]} 22... Qd7 {[%clk 0:01:51.6]} 23. b5 {[%clk 0:02:01.7]} 23... a6
{[%clk 0:01:50.2]} 24. Kb2 {[%clk 0:01:58.5]} 24... axb5 {[%clk 0:01:48]} 25.
Qxb5 {[%clk 0:01:57.5]} 25... Qb7 {[%clk 0:01:46.1]} 26. g4 {[%clk 0:01:46.2]}
26... Bd7 {[%clk 0:01:46.2]} 27. Nc5 {[%clk 0:01:35.8]} 27... Bxb5 {[%clk
0:01:33.4]} 28. Nxb7 {[%clk 0:01:34.7]} 28... Bxa4 {[%clk 0:01:33.5]} 29. Rc1
{[%clk 0:01:31.8]} 29... Nc6 {[%clk 0:01:23.7]} 30. Nd6 {[%clk 0:01:29.4]} 30...
Red8 {[%clk 0:01:18.3]} 31. g5 {[%clk 0:01:29]} 31... Bf8 {[%clk 0:01:09.1]} 32.
gxf6 {[%clk 0:01:14.5]} 32... Bxd6 {[%clk 0:01:08.7]} 33. Bxd6 {[%clk
0:01:05.3]} 33... Rxd6 {[%clk 0:01:09.6]} 34. Rc3 {[%clk 0:01:05.1]} 34... Nb4
{[%clk 0:01:04.6]} 35. Bb1 {[%clk 0:00:53.1]} 35... Rxf6 {[%clk 0:01:03.4]} 36.
Rhc1 {[%clk 0:00:48]} 36... Rxf2 {[%clk 0:01:02.4]} 37. Rc8+ {[%clk 0:00:40.3]}
37... Rxc8 {[%clk 0:00:58.8]} 38. Rxc8+ {[%clk 0:00:41.2]} 38... Kg7 {[%clk
0:00:59.4]} 39. Kc3 {[%clk 0:00:39.6]} 39... Nc6 {[%clk 0:00:50.1]} 40. Ba2
{[%clk 0:00:35]} 40... Ne7 {[%clk 0:00:48.4]} 41. Rc7 {[%clk 0:00:31.7]} 41...
Kf6 {[%clk 0:00:48.3]} 42. Ra7 {[%clk 0:00:21.4]} 42... b5 {[%clk 0:00:48.5]}
43. Bxd5 {[%clk 0:00:20.2]} 43... Nxd5+ {[%clk 0:00:48.1]} 44. Kb2 {[%clk
0:00:12.8]} 44... Rxd2+ {[%clk 0:00:47.4]} 45. Ka3 {[%clk 0:00:13.1]} 45... Nxe3
{[%clk 0:00:46.9]} 46. h4 {[%clk 0:00:12.1]} 46... Nc2+ {[%clk 0:00:47]} 47. Kb2
{[%clk 0:00:11.7]} 47... Nxd4+ {[%clk 0:00:47.9]} 48. Kc3 {[%clk 0:00:11.5]}
48... Rd3+ {[%clk 0:00:48.8]} 49. Kb2 {[%clk 0:00:10.8]} 49... h5 {[%clk
0:00:45.8]} 50. Ka1 {[%clk 0:00:09.3]} 50... Kg7 {[%clk 0:00:42.3]} 51. Kb1
{[%clk 0:00:08.8]} 51... g5 {[%clk 0:00:42.8]} 52. Kc1 {[%clk 0:00:09]} 52...
gxh4 {[%clk 0:00:42.9]} 53. Kb2 {[%clk 0:00:08.1]} 53... h3 {[%clk 0:00:43.4]}
54. Ka2 {[%clk 0:00:08]} 54... h2 {[%clk 0:00:43.6]} 55. Kb2 {[%clk 0:00:07.4]}
55... h1=Q {[%clk 0:00:43.4]} 56. Ka2 {[%clk 0:00:08.3]} 56... Qh2+ {[%clk
0:00:42.8]} 57. Kb1 {[%clk 0:00:08.2]} 57... Rd1# {[%clk 0:00:43.3]} 0-1

[Event "Early-Titled-Tuesday-Blitz-November-28-2023"]
[Site "Chess.com"]
[Date "2023.11.28"]
[Round "2"]
[White "Aradhya2000"]
[Black "patzersame"]
[Result "1-0"]
[WhiteElo "2692"]
[BlackElo "2352"]
[TimeControl "180+1"]
[EndTime "8:18:03 PST"]
[Termination "Aradhya2000 won by resignation"]

1. d4 {[%clk 0:03:00.9]} 1... d5 {[%clk 0:02:59.5]} 2. c4 {[%clk 0:03:01.2]}
2... e6 {[%clk 0:02:58.7]} 3. Nc3 {[%clk 0:03:01.3]} 3... Nf6 {[%clk 0:02:58.8]}
4. cxd5 {[%clk 0:03:00.9]} 4... exd5 {[%clk 0:02:59.1]} 5. Bg5 {[%clk
0:03:00.8]} 5... Be7 {[%clk 0:02:59.1]} 6. e3 {[%clk 0:03:01]} 6... O-O {[%clk
0:02:59.2]} 7. Bd3 {[%clk 0:03:01.2]} 7... c6 {[%clk 0:02:54.8]} 8. Nge2 {[%clk
0:02:56.8]} 8... Ne4 {[%clk 0:02:44]} 9. Bf4 {[%clk 0:02:54]} 9... Nxc3 {[%clk
0:02:29.4]} 10. bxc3 {[%clk 0:02:52.1]} 10... Bd6 {[%clk 0:02:30.3]} 11. O-O
{[%clk 0:02:51]} 11... Bg4 {[%clk 0:02:29.2]} 12. f3 {[%clk 0:02:48.7]} 12...
Bh5 {[%clk 0:02:29.4]} 13. Qb1 {[%clk 0:02:46.6]} 13... Bg6 {[%clk 0:02:26.1]}
14. Bxg6 {[%clk 0:02:45.4]} 14... hxg6 {[%clk 0:02:23.4]} 15. Qxb7 {[%clk
0:02:44.5]} 15... Bxf4 {[%clk 0:02:22.7]} 16. Nxf4 {[%clk 0:02:23.4]} 16... Nd7
{[%clk 0:02:11]} 17. Qxc6 {[%clk 0:02:23.2]} 17... Rc8 {[%clk 0:02:07.3]} 18.
Qxd5 {[%clk 0:02:22.9]} 18... Rxc3 {[%clk 0:02:07.2]} 19. Nxg6 {[%clk
0:02:12.6]} 19... Nf6 {[%clk 0:01:48.9]} 20. Qxd8 {[%clk 0:02:12.4]} 20... Rxd8
{[%clk 0:01:49.8]} 21. Nf4 {[%clk 0:01:48.5]} 21... Rxe3 {[%clk 0:01:49.6]} 22.
Rfd1 {[%clk 0:01:48.5]} 22... Nd5 {[%clk 0:01:43.1]} 23. Kf2 {[%clk 0:01:42.3]}
23... Rc3 {[%clk 0:01:39.4]} 24. Nxd5 {[%clk 0:01:42.5]} 24... Rxd5 {[%clk
0:01:40.3]} 25. Rd2 {[%clk 0:01:42.3]} 25... f5 {[%clk 0:01:31.5]} 26. Rad1
{[%clk 0:01:42]} 26... f4 {[%clk 0:01:29.8]} 27. g3 {[%clk 0:01:36.7]} 27... g5
{[%clk 0:01:25.5]} 28. gxf4 {[%clk 0:01:36.7]} 28... gxf4 {[%clk 0:01:26.4]} 29.
Rg1+ {[%clk 0:01:36.7]} 29... Kf7 {[%clk 0:01:26.1]} 30. Rg4 {[%clk 0:01:37.4]}
30... Rf5 {[%clk 0:01:23.6]} 31. d5 {[%clk 0:01:37.5]} 31... Ke7 {[%clk
0:01:23.7]} 32. d6+ {[%clk 0:01:37.6]} 32... Kd7 {[%clk 0:01:20]} 33. Rg7+
{[%clk 0:01:37.6]} 33... Kd8 {[%clk 0:01:20.4]} 34. Rxa7 {[%clk 0:01:37]} 34...
Rh5 {[%clk 0:01:17.6]} 35. Kg2 {[%clk 0:01:31.6]} 35... Rg5+ {[%clk 0:01:09.2]}
36. Kh3 {[%clk 0:01:31.7]} 36... Rc6 {[%clk 0:00:58]} 37. Rb2 {[%clk 0:01:18.5]}
37... Rg6 {[%clk 0:00:27.9]} 38. Rb8+ {[%clk 0:01:14.3]} 38... Rc8 {[%clk
0:00:28.1]} 39. Rxc8+ {[%clk 0:01:14.6]} 39... Kxc8 {[%clk 0:00:29]} 40. Ra4
{[%clk 0:01:12.5]} 40... Rh6+ {[%clk 0:00:24]} 41. Kg2 {[%clk 0:01:12.1]} 41...
Rg6+ {[%clk 0:00:24.2]} 42. Kh3 {[%clk 0:01:10.7]} 42... Rh6+ {[%clk 0:00:24.3]}
43. Kg4 {[%clk 0:01:11.1]} 43... Rxh2 {[%clk 0:00:24.2]} 44. Rxf4 {[%clk
0:00:58.7]} 44... Rxa2 {[%clk 0:00:23.9]} 45. Rf7 {[%clk 0:00:57.5]} 45... Rd2
{[%clk 0:00:21.6]} 46. d7+ {[%clk 0:00:53.8]} 46... Kd8 {[%clk 0:00:20.7]} 47.
f4 {[%clk 0:00:54.2]} 47... Rd1 {[%clk 0:00:20.6]} 48. f5 {[%clk 0:00:54.4]}
48... Rg1+ {[%clk 0:00:20.9]} 49. Kh5 {[%clk 0:00:54.5]} 49... Kc7 {[%clk
0:00:20.2]} 50. f6 {[%clk 0:00:53.7]} 50... Kd8 {[%clk 0:00:20.6]} 51. Kh6
{[%clk 0:00:53.9]} 51... Kc7 {[%clk 0:00:20.4]} 52. Rg7 {[%clk 0:00:53.8]} 52...
Rh1+ {[%clk 0:00:20.3]} 53. Kg6 {[%clk 0:00:54.2]} 53... Kd8 {[%clk 0:00:21.2]}
54. Rg8+ {[%clk 0:00:51.6]} 54... Kxd7 {[%clk 0:00:17.2]} 55. f7 {[%clk
0:00:52.1]} 55... Rg1+ {[%clk 0:00:12.3]} 56. Kh5 {[%clk 0:00:52.3]} 1-0

[Event "Early-Titled-Tuesday-Blitz-November-28-2023"]
[Site "Chess.com"]
[Date "2023.11.28"]
[Round "2"]
[White "SmirnovTimofey2000"]
[Black "GrumbleBruno"]
[Result "0-1"]
[WhiteElo "2075"]
[BlackElo "2436"]
[TimeControl "180+1"]
[EndTime "8:18:03 PST"]
[Termination "GrumbleBruno won by resignation"]

1. d4 {[%clk 0:03:00.9]} 1... Nf6 {[%clk 0:02:59.2]} 2. Bf4 {[%clk 0:03:00.7]}
2... c6 {[%clk 0:02:58.9]} 3. c3 {[%clk 0:02:54.8]} 3... Qb6 {[%clk 0:02:58.3]}
4. Qb3 {[%clk 0:02:51.1]} 4... d6 {[%clk 0:02:53.1]} 5. e3 {[%clk 0:02:50.9]}
5... Nh5 {[%clk 0:02:50.9]} 6. Bg3 {[%clk 0:02:47.7]} 6... Nxg3 {[%clk
0:02:49.6]} 7. hxg3 {[%clk 0:02:48.6]} 7... Be6 {[%clk 0:02:47.2]} 8. Qc2 {[%clk
0:02:36.4]} 8... Nd7 {[%clk 0:02:33.6]} 9. Nd2 {[%clk 0:02:26.1]} 9... Nf6
{[%clk 0:02:31.4]} 10. Ngf3 {[%clk 0:02:24.5]} 10... g6 {[%clk 0:02:30.7]} 11.
Ng5 {[%clk 0:02:17.8]} 11... Bd7 {[%clk 0:02:30.3]} 12. Bd3 {[%clk 0:02:05.1]}
12... Bg7 {[%clk 0:02:25.5]} 13. Qb3 {[%clk 0:01:54]} 13... d5 {[%clk
0:02:05.7]} 14. Ndf3 {[%clk 0:01:48.6]} 14... h6 {[%clk 0:01:57.4]} 15. Nh3
{[%clk 0:01:37.9]} 15... Ng4 {[%clk 0:01:53.9]} 16. O-O-O {[%clk 0:01:18.5]}
16... Qxb3 {[%clk 0:01:39.5]} 17. axb3 {[%clk 0:01:18.5]} 17... O-O-O {[%clk
0:01:28.7]} 18. Kd2 {[%clk 0:01:13]} 18... Rde8 {[%clk 0:01:25.5]} 19. Ra1
{[%clk 0:01:09.9]} 19... a6 {[%clk 0:01:24]} 20. Ke2 {[%clk 0:01:06.1]} 20... g5
{[%clk 0:01:09.9]} 21. e4 {[%clk 0:00:40.1]} 21... dxe4 {[%clk 0:00:59.8]} 22.
Bxe4 {[%clk 0:00:40.6]} 22... f5 {[%clk 0:00:58.8]} 23. Bd3 {[%clk 0:00:36.7]}
23... e5 {[%clk 0:00:58.7]} 24. dxe5 {[%clk 0:00:30.1]} 24... Bxe5 {[%clk
0:00:38.8]} 25. Nxe5 {[%clk 0:00:31]} 25... Nxe5 {[%clk 0:00:38.8]} 26. Kd2
{[%clk 0:00:28.7]} 26... Rd8 {[%clk 0:00:35.8]} 27. Kc2 {[%clk 0:00:17.7]} 27...
Nxd3 {[%clk 0:00:26.2]} 28. Kxd3 {[%clk 0:00:17.9]} 28... f4 {[%clk 0:00:26.6]}
29. Kc2 {[%clk 0:00:05.8]} 29... Bf5+ {[%clk 0:00:23.3]} 30. Kc1 {[%clk
0:00:04.9]} 30... fxg3 {[%clk 0:00:19.5]} 31. fxg3 {[%clk 0:00:05.1]} 31... Bxh3
{[%clk 0:00:19.4]} 32. gxh3 {[%clk 0:00:05.3]} 32... Rhf8 {[%clk 0:00:19.6]} 33.
Re1 {[%clk 0:00:05.5]} 33... Rf2 {[%clk 0:00:19.1]} 34. Kb1 {[%clk 0:00:05.1]}
34... Rdd2 {[%clk 0:00:18.7]} 35. Ra2 {[%clk 0:00:04.2]} 35... Rf3 {[%clk
0:00:16.9]} 36. Rg1 {[%clk 0:00:03.9]} 36... Rdd3 {[%clk 0:00:16.1]} 37. Kc2
{[%clk 0:00:03.8]} 37... Rxg3 {[%clk 0:00:16.1]} 38. Rxg3 {[%clk 0:00:04.1]}
38... Rxg3 {[%clk 0:00:16.3]} 39. Ra4 {[%clk 0:00:03.9]} 39... Rxh3 {[%clk
0:00:16.5]} 40. Rf4 {[%clk 0:00:04.5]} 40... gxf4 {[%clk 0:00:16.1]} 0-1

[Event "Early-Titled-Tuesday-Blitz-November-28-2023"]
[Site "Chess.com"]
[Date "2023.11.28"]
[Round "2"]
[White "The_Straightforward_Rook"]
[Black "adapodadei"]
[Result "0-1"]
[WhiteElo "2466"]
[BlackElo "2730"]
[TimeControl "180+1"]
[EndTime "8:18:04 PST"]
[Termination "adapodadei won by resignation"]

1. e4 {[%clk 0:02:36.5]} 1... c6 {[%clk 0:02:59.4]} 2. Nc3 {[%clk 0:02:35.7]}
2... d5 {[%clk 0:02:59.7]} 3. Nf3 {[%clk 0:02:35.2]} 3... Bg4 {[%clk 0:02:59.7]}
4. h3 {[%clk 0:02:35.6]} 4... Bxf3 {[%clk 0:02:59.9]} 5. Qxf3 {[%clk 0:02:36.5]}
5... e6 {[%clk 0:03:00.4]} 6. Qg3 {[%clk 0:02:36.2]} 6... h5 {[%clk 0:02:51.1]}
7. d3 {[%clk 0:02:35.4]} 7... h4 {[%clk 0:02:50.8]} 8. Qh2 {[%clk 0:02:30.9]}
8... Bd6 {[%clk 0:02:46.8]} 9. Bf4 {[%clk 0:02:30.5]} 9... Bxf4 {[%clk
0:02:36.2]} 10. Qxf4 {[%clk 0:02:31.4]} 10... Nd7 {[%clk 0:02:36.2]} 11. exd5
{[%clk 0:02:29.5]} 11... exd5 {[%clk 0:02:34.3]} 12. O-O-O {[%clk 0:02:27.7]}
12... Ne7 {[%clk 0:02:33.7]} 13. Re1 {[%clk 0:02:25.4]} 13... Nf8 {[%clk
0:02:33.8]} 14. Be2 {[%clk 0:02:18.8]} 14... Ne6 {[%clk 0:02:32.8]} 15. Qg4
{[%clk 0:02:17.6]} 15... Qd6 {[%clk 0:02:29.1]} 16. Kb1 {[%clk 0:02:01.8]} 16...
Qf4 {[%clk 0:02:28.1]} 17. Qxf4 {[%clk 0:01:58.2]} 17... Nxf4 {[%clk 0:02:29]}
18. Bf3 {[%clk 0:01:58.5]} 18... Rh6 {[%clk 0:02:23.6]} 19. Ne2 {[%clk
0:01:57.5]} 19... Ne6 {[%clk 0:02:19]} 20. Nc1 {[%clk 0:01:42.8]} 20... Kd7
{[%clk 0:02:15.1]} 21. c3 {[%clk 0:01:40.4]} 21... Nf4 {[%clk 0:01:49.7]} 22.
Kc2 {[%clk 0:01:37.1]} 22... Rg6 {[%clk 0:01:45.6]} 23. Rhg1 {[%clk 0:01:31.4]}
23... f5 {[%clk 0:01:31.2]} 24. d4 {[%clk 0:01:20.8]} 24... Nc8 {[%clk
0:01:29.9]} 25. Nd3 {[%clk 0:01:19.9]} 25... Nxd3 {[%clk 0:01:29.7]} 26. Kxd3
{[%clk 0:01:20.8]} 26... Nd6 {[%clk 0:01:30.2]} 27. Re5 {[%clk 0:01:21.2]} 27...
Re8 {[%clk 0:01:26.6]} 28. Rxe8 {[%clk 0:01:18.2]} 28... Nxe8 {[%clk 0:01:24.4]}
29. g3 {[%clk 0:01:15.5]} 29... Nd6 {[%clk 0:01:23.2]} 30. g4 {[%clk 0:01:09.2]}
30... Ne4 {[%clk 0:01:19.3]} 31. Bxe4 {[%clk 0:01:08.9]} 31... fxe4+ {[%clk
0:01:20.2]} 32. Ke2 {[%clk 0:01:05.1]} 32... Rf6 {[%clk 0:01:20.5]} 33. g5
{[%clk 0:00:52.3]} 33... Rf3 {[%clk 0:01:17.9]} 34. Rg4 {[%clk 0:00:52.9]} 34...
Rxh3 {[%clk 0:01:17.7]} 35. Rf4 {[%clk 0:00:53.5]} 35... Ke6 {[%clk 0:01:11.7]}
36. g6 {[%clk 0:00:54.1]} 36... Rf3 {[%clk 0:01:05.7]} 37. Rxh4 {[%clk
0:00:52.3]} 37... Kf5 {[%clk 0:01:02.2]} 38. Rh8 {[%clk 0:00:47]} 38... Kxg6
{[%clk 0:01:02.4]} 39. Rd8 {[%clk 0:00:42.1]} 39... Rf7 {[%clk 0:01:01.6]} 40.
a4 {[%clk 0:00:39.4]} 40... a6 {[%clk 0:01:01.4]} 41. a5 {[%clk 0:00:39.2]}
41... Kf5 {[%clk 0:00:58.7]} 42. Rb8 {[%clk 0:00:36.2]} 42... g5 {[%clk
0:00:57.6]} 43. Rg8 {[%clk 0:00:36.7]} 43... Kf4 {[%clk 0:00:54.8]} 44. Rb8
{[%clk 0:00:36.9]} 44... Kf5 {[%clk 0:00:47.6]} 45. Rg8 {[%clk 0:00:37]} 45...
Kf6 {[%clk 0:00:47.5]} 46. Rb8 {[%clk 0:00:37.2]} 46... Rg7 {[%clk 0:00:47.6]}
47. Rf8+ {[%clk 0:00:36.7]} 47... Ke7 {[%clk 0:00:47.5]} 48. Rb8 {[%clk
0:00:36.8]} 48... Kd6 {[%clk 0:00:48]} 49. Rd8+ {[%clk 0:00:36.6]} 49... Kc7
{[%clk 0:00:48.2]} 50. Rf8 {[%clk 0:00:35.7]} 50... g4 {[%clk 0:00:48.6]} 51.
Rh8 {[%clk 0:00:26.7]} 51... g3 {[%clk 0:00:48.5]} 52. fxg3 {[%clk 0:00:26.8]}
52... Rxg3 {[%clk 0:00:49.4]} 53. Rh7+ {[%clk 0:00:27.4]} 53... Kb8 {[%clk
0:00:49.4]} 54. Kd2 {[%clk 0:00:27.1]} 54... Rg2+ {[%clk 0:00:48.5]} 55. Kc1
{[%clk 0:00:27.2]} 55... Rg1+ {[%clk 0:00:48.3]} 56. Kc2 {[%clk 0:00:27]} 56...
Ra1 {[%clk 0:00:48.9]} 57. b4 {[%clk 0:00:26.5]} 57... Ra2+ {[%clk 0:00:48.1]}
58. Kc1 {[%clk 0:00:26.8]} 58... e3 {[%clk 0:00:46.8]} 59. Re7 {[%clk 0:00:27]}
59... e2 {[%clk 0:00:46.2]} 60. Kb1 {[%clk 0:00:26.5]} 60... Rd2 {[%clk
0:00:45.7]} 61. Kc1 {[%clk 0:00:26.8]} 61... Rd1+ {[%clk 0:00:46]} 0-1

[Event "Early-Titled-Tuesday-Blitz-November-28-2023"]
[Site "Chess.com"]
[Date "2023.11.28"]
[Round "2"]
[White "Roman_Ovetchkin"]
[Black "Jojo_898"]
[Result "1-0"]
[WhiteElo "2657"]
[BlackElo "2376"]
[TimeControl "180+1"]
[EndTime "8:18:06 PST"]
[Termination "Roman_Ovetchkin won by checkmate"]

1. d4 {[%clk 0:03:00.9]} 1... Nf6 {[%clk 0:02:59.1]} 2. c4 {[%clk 0:03:00.7]}
2... e6 {[%clk 0:02:57.8]} 3. g3 {[%clk 0:03:00.5]} 3... d5 {[%clk 0:02:56.1]}
4. Bg2 {[%clk 0:03:00.6]} 4... Ne4 {[%clk 0:02:56.8]} 5. Nf3 {[%clk 0:03:00.4]}
5... Be7 {[%clk 0:02:53.3]} 6. O-O {[%clk 0:03:00.3]} 6... O-O {[%clk
0:02:53.2]} 7. Nc3 {[%clk 0:02:57.4]} 7... f5 {[%clk 0:02:52.5]} 8. Nd2 {[%clk
0:02:46]} 8... c6 {[%clk 0:02:49.5]} 9. Ndxe4 {[%clk 0:02:40.9]} 9... fxe4
{[%clk 0:02:48.1]} 10. f3 {[%clk 0:02:41.3]} 10... exf3 {[%clk 0:02:47.5]} 11.
exf3 {[%clk 0:02:41.2]} 11... dxc4 {[%clk 0:02:45.2]} 12. f4 {[%clk 0:02:38.1]}
12... Bf6 {[%clk 0:02:43.8]} 13. Be3 {[%clk 0:02:37.6]} 13... Nd7 {[%clk
0:02:41.9]} 14. Qe2 {[%clk 0:02:36.5]} 14... Nb6 {[%clk 0:02:42.1]} 15. Rad1
{[%clk 0:02:22.1]} 15... Bd7 {[%clk 0:02:38.6]} 16. Ne4 {[%clk 0:02:20.1]} 16...
Be8 {[%clk 0:02:28.7]} 17. Nc5 {[%clk 0:02:19.1]} 17... Qc8 {[%clk 0:02:26.5]}
18. Bf2 {[%clk 0:02:17.9]} 18... Bf7 {[%clk 0:02:26]} 19. Bh3 {[%clk 0:01:54.5]}
19... Re8 {[%clk 0:02:23.9]} 20. Rfe1 {[%clk 0:01:54.7]} 20... Re7 {[%clk
0:02:14.6]} 21. g4 {[%clk 0:01:46.4]} 21... h6 {[%clk 0:02:06.1]} 22. Ne4 {[%clk
0:01:45]} 22... Qf8 {[%clk 0:01:50.9]} 23. g5 {[%clk 0:01:42.3]} 23... Nd5
{[%clk 0:01:33.9]} 24. Bg3 {[%clk 0:01:37.1]} 24... Bxd4+ {[%clk 0:01:12]} 25.
Rxd4 {[%clk 0:01:34.3]} 25... b5 {[%clk 0:01:11]} 26. gxh6 {[%clk 0:01:22.9]}
26... gxh6 {[%clk 0:01:10.6]} 27. Nd6 {[%clk 0:01:16.9]} 27... Qg7 {[%clk
0:01:03.5]} 28. Qe5 {[%clk 0:01:14.5]} 28... Qxe5 {[%clk 0:00:55.4]} 29. Rxe5
{[%clk 0:01:14]} 29... Rd8 {[%clk 0:00:49.3]} 30. Nxf7 {[%clk 0:01:12.3]} 30...
Kxf7 {[%clk 0:00:50.2]} 31. Bh4 {[%clk 0:01:02.4]} 31... Rg8+ {[%clk 0:00:48.9]}
32. Kf2 {[%clk 0:01:02.3]} 32... Ree8 {[%clk 0:00:46.4]} 33. f5 {[%clk
0:00:59.9]} 33... exf5 {[%clk 0:00:40.6]} 34. Rxf5+ {[%clk 0:00:59.7]} 34... Kg7
{[%clk 0:00:41.2]} 35. Rg4+ {[%clk 0:00:57.6]} 35... Kh8 {[%clk 0:00:37.4]} 36.
Rxg8+ {[%clk 0:00:55.8]} 36... Kxg8 {[%clk 0:00:35.3]} 37. Bg3 {[%clk
0:00:48.2]} 37... Nb4 {[%clk 0:00:33.5]} 38. Rf6 {[%clk 0:00:39.8]} 38... Kg7
{[%clk 0:00:31.2]} 39. Rd6 {[%clk 0:00:37.9]} 39... Nd3+ {[%clk 0:00:29.8]} 40.
Kf3 {[%clk 0:00:37.3]} 40... Nxb2 {[%clk 0:00:29.3]} 41. Rxc6 {[%clk 0:00:37.4]}
41... b4 {[%clk 0:00:29.4]} 42. Bf5 {[%clk 0:00:36.4]} 42... Rf8 {[%clk
0:00:25.9]} 43. Kg4 {[%clk 0:00:35.3]} 43... c3 {[%clk 0:00:23.4]} 44. Be5+
{[%clk 0:00:35.4]} 44... Kg8 {[%clk 0:00:20.7]} 45. Rc7 {[%clk 0:00:34.4]} 45...
Rxf5 {[%clk 0:00:17.5]} 46. Kxf5 {[%clk 0:00:34.4]} 46... Nd3 {[%clk 0:00:18.1]}
47. Bxc3 {[%clk 0:00:33.5]} 47... bxc3 {[%clk 0:00:17.8]} 48. Rxc3 {[%clk
0:00:34.4]} 48... Nb4 {[%clk 0:00:18.4]} 49. a4 {[%clk 0:00:32.9]} 49... Nd5
{[%clk 0:00:16.4]} 50. Rc5 {[%clk 0:00:32.9]} 50... Nb6 {[%clk 0:00:16.6]} 51.
Kg6 {[%clk 0:00:28.8]} 51... Nxa4 {[%clk 0:00:16.2]} 52. Rc8# {[%clk 0:00:28.6]}
1-0